[Event "Weekend I 2025"]
[Site "Uppsala, Sweden"]
[Date "2025.06.27"]
[Round "1.12"]
[White "Wiklund, Johan"]
[Black "Eliasson, Peter"]
[Result "1-0"]
[TimeControl "90 min + increment of 30 sec starting move 1"]
[WhiteFideId "1713817"]
[BlackFideId "1741632"]
[WhiteElo "1969"]
[BlackElo "1929"]

1. d4 {[%clk 01:30:57]} {[%emt 00:00:02]} Nf6 {[%clk 01:30:46]} {[%emt
00:00:14]} 2. Nf3 {[%clk 01:31:17]} {[%emt 00:00:09]} d5 {[%clk 01:30:34]}
{[%emt 00:00:44]} 3. Bf4 {[%clk 01:31:33]} {[%emt 00:00:13]} c5 {[%clk
01:30:15]} {[%emt 00:00:50]} 4. c3 {[%clk 01:30:30]} {[%emt 00:01:32]} Qb6
{[%clk 01:29:51]} {[%emt 00:00:55]} 5. Qb3 {[%clk 01:25:40]} {[%emt 00:05:19]}
c4 {[%clk 01:26:10]} {[%emt 00:04:12]} 6. Qxb6 {[%clk 01:19:36]} {[%emt
00:06:33]} axb6 {[%clk 01:25:51]} {[%emt 00:00:49]} 7. Na3 {[%clk 01:17:18]}
{[%emt 00:02:48]} Bd7 {[%clk 01:23:08]} {[%emt 00:03:15]} 8. Ne5 {[%clk
01:14:09]} {[%emt 00:03:38]} Ba4 {[%clk 01:22:52]} {[%emt 00:00:46]} 9. g4
{[%clk 01:10:01]} {[%emt 00:04:37]} e6 {[%clk 01:22:01]} {[%emt 00:01:22]} 10.
Nb1 {[%clk 01:10:18]} {[%emt 00:00:12]} h6 {[%clk 01:14:46]} {[%emt 00:07:46]}
11. Bg2 {[%clk 01:09:40]} {[%emt 00:01:07]} Nc6 {[%clk 01:14:49]} {[%emt
00:00:27]} 12. h3 {[%clk 01:09:24]} {[%emt 00:00:46]} Nh7 {[%clk 01:12:20]}
{[%emt 00:03:00]} 13. Nd2 {[%clk 01:05:36]} {[%emt 00:04:17]} Nxe5 {[%clk
01:09:44]} {[%emt 00:03:07]} 14. Bxe5 {[%clk 01:05:37]} {[%emt 00:00:28]} f6
{[%clk 01:08:51]} {[%emt 00:01:23]} 15. Bg3 {[%clk 01:04:02]} {[%emt 00:02:04]}
Bc2 {[%clk 01:05:56]} {[%emt 00:03:26]} 16. O-O {[%clk 01:02:27]} {[%emt
00:02:04]} b5 {[%clk 01:04:36]} {[%emt 00:01:52]} 17. e4 {[%clk 00:58:22]}
{[%emt 00:04:34]} Rd8 {[%clk 01:02:07]} {[%emt 00:03:00]} 18. exd5 {[%clk
00:56:56]} {[%emt 00:01:56]} exd5 {[%clk 01:02:25]} {[%emt 00:00:12]} 19. Rfe1+
{[%clk 00:53:09]} {[%emt 00:04:16]} Kf7 {[%clk 01:02:00]} {[%emt 00:00:55]} 20.
Re3 {[%clk 00:48:08]} {[%emt 00:05:30]} b4 {[%clk 01:01:54]} {[%emt 00:00:37]}
21. Rae1 {[%clk 00:45:56]} {[%emt 00:02:41]} f5 {[%clk 01:00:53]} {[%emt
00:01:32]} 22. gxf5 {[%clk 00:41:33]} {[%emt 00:04:52]} Bxf5 {[%clk 01:00:28]}
{[%emt 00:00:56]} 23. Re5 {[%clk 00:39:25]} {[%emt 00:02:37]} g6 {[%clk
00:57:07]} {[%emt 00:03:52]} 24. Bxd5+ {[%clk 00:38:09]} {[%emt 00:01:46]} Rxd5
{[%clk 00:57:00]} {[%emt 00:00:37]} 25. Rxd5 {[%clk 00:37:56]} {[%emt
00:00:43]} bxc3 {[%clk 00:56:59]} {[%emt 00:00:31]} 26. bxc3 {[%clk 00:38:08]}
{[%emt 00:00:19]} Bxh3 {[%clk 00:57:01]} {[%emt 00:00:27]} 27. Rb5 {[%clk
00:38:04]} {[%emt 00:00:34]} Bc8 {[%clk 00:56:15]} {[%emt 00:01:17]} 28. Nxc4
{[%clk 00:38:05]} {[%emt 00:00:29]} Ng5 {[%clk 00:55:57]} {[%emt 00:00:48]} 29.
Ne5+ {[%clk 00:34:28]} {[%emt 00:04:06]} Kf6 {[%clk 00:55:09]} {[%emt
00:01:18]} 30. Rb6+ {[%clk 00:34:02]} {[%emt 00:00:57]} Kf5 {[%clk 00:54:51]}
{[%emt 00:00:48]} 31. Kg2 {[%clk 00:32:49]} {[%emt 00:01:42]} Rh7 {[%clk
00:53:43]} {[%emt 00:01:39]} 32. Nxg6 {[%clk 00:32:44]} {[%emt 00:00:34]} Bg7
{[%clk 00:53:09]} {[%emt 00:01:04]} 33. Ne7+ {[%clk 00:31:48]} {[%emt
00:01:25]} 1-0